bitfinex/quotes_SOLUSD_20240808
["timestamp","ask_amount","ask_price","bid_price","bid_amount"]
[1723123875830,0.17,157.36,157.29,1.27112002]
[1723123876137,0.17,157.36,157.28,6.3378]
[1723123876830,6.5248,157.36,157.28,6.3378]
[1723123877029,0.17,157.36,157.29,1.27143117]
[1723123877231,0.17,157.36,157.28,6.3378]
[1723123877634,83.58,157.37,157.28,6.3378]
[1723123877953,44.9344,157.37,157.28,6.3378]
[1723123878122,45.0,157.36,157.28,6.3378]
[1723123878326,0.8561546,157.4,157.28,6.3378]
[1723123878549,7.2097546,157.4,157.28,6.3378]
[1723123878746,6.3537,157.39,157.28,6.3378]
[1723123878958,38.24,157.39,157.28,6.3378]
[1723123879245,0.8561546,157.4,157.29,66.21253404]
[1723123879551,0.8561546,157.4,157.3,0.17]
[1723123879741,0.8561546,157.4,157.29,66.21253404]
[1723123879742,39.0961546,157.4,157.29,20.0]
[1723123880144,39.0961546,157.4,157.28,6.3378]
[1723123880339,39.0961546,157.4,157.29,20.0]
[1723123880340,44.5939,157.39,157.29,20.0]
[1723123880657,0.8561546,157.4,157.3,1.26164954]
[1723123880947,0.8561546,157.4,157.29,19.5]
[1723123881654,38.24,157.38,157.28,6.3378]
[1723123881853,6.3564,157.33,157.23,6.5526]
[1723123882056,6.3561,157.33,157.23,6.5526]
[1723123882241,45.17,157.32,157.23,6.5526]
[1723123882445,6.3581,157.28,157.23,6.5526]
[1723123882631,0.17,157.31,157.18,16.6036]
[1723123882632,0.17,157.27,157.18,22.7334]
[1723123882841,83.41,157.28,157.18,6.1298]
[1723123883157,6.3608,157.22,157.12,6.1298]
[1723123883455,0.34,157.21,157.12,6.1298]
[1723123883657,0.34,157.21,157.06,6.6003]
[1723123883837,6.3616,157.2,157.06,6.6003]
[1723123884031,83.58,157.21,157.06,6.6003]
[1723123884032,38.24,157.18,157.06,6.6003]
[1723123884240,45.17,157.17,157.06,6.6003]
[1723123884529,0.17,157.16,157.06,6.6003]
[1723123885245,0.17,157.17,157.06,6.6003]
[1723123885453,42.95,157.24,157.07,1.2727463]
[1723123885655,45.34,157.23,157.08,1.272526]
[1723123886236,0.34,157.23,157.08,46.272526]
[1723123886442,6.7001,157.23,157.09,20.34]
[1723123886633,6.7001,157.23,157.1,45.0]
[1723123886957,0.34,157.23,157.11,20.17]
[1723123887254,6.3622,157.18,157.06,6.6003]
[1723123887555,45.34,157.17,157.06,6.6003]
[1723123888355,6.3634,157.15,157.06,6.6003]
[1723123888562,0.34,157.17,157.06,6.6003]
[1723123888729,38.24,157.16,157.06,6.6003]
[1723123888938,38.24,157.14,157.0,6.1928]
[1723123889139,45.34,157.15,157.0,6.1928]
[1723123889140,89.9442,157.13,157.0,6.1928]
[1723123889444,45.34,157.12,157.0,6.1928]
[1723123890239,45.34,157.12,157.01,20.0]
[1723123890858,45.34,157.12,157.0,6.1928]
[1723123891041,89.9447,157.12,157.0,6.1928]
[1723123891235,83.58,157.12,157.0,6.1928]
[1723123891438,6.3621,157.18,157.0,7.46612546]
[1723123891743,15.9038,157.2,157.0,7.46612546]
[1723123892050,42.95,157.17,157.0,6.1928]
[1723123892260,42.95,157.17,157.01,20.0]
[1723123892562,6.3653,157.1,157.01,20.0]
[1723123892775,42.95,157.14,157.01,20.0]
[1723123893060,45.34,157.13,157.01,20.0]
[1723123893243,6.3645,157.12,157.01,20.0]
[1723123893447,83.58,157.11,157.01,20.0]
[1723123893658,38.41,157.11,157.01,20.0]
[1723123893839,0.17,157.1,157.01,20.0]
[1723123894369,0.17,157.1,157.0,6.1928]
[1723123894370,83.41,157.1,156.95,6.3181]
[1723123894535,38.24,157.08,156.95,6.3181]
[1723123894735,6.3675,157.05,156.95,6.3181]
[1723123894960,83.58,157.07,156.87,20.0]
[1723123894961,6.3687,157.02,156.9,6.3181]
[1723123895165,38.24,157.01,156.9,6.3181]
[1723123895339,38.24,157.01,156.85,0.8561546]
[1723123895340,38.24,156.98,156.85,7.2711546]
[1723123895539,89.9507,156.97,156.85,7.2711546]
[1723123895862,45.17,156.96,156.85,7.2711546]
[1723123896159,6.3735,156.9,156.85,0.8561546]
[1723123896386,0.17,156.89,156.85,0.8561546]
[1723123896540,0.34,156.89,156.85,0.8561546]
[1723123896744,0.17,156.89,156.85,0.8561546]
[1723123897037,15.727,157.02,156.85,0.8561546]
[1723123897306,0.17,156.97,156.85,0.8561546]
[1723123897569,15.727,157.02,156.86,1.24798212]
[1723123897570,0.17,157.01,156.86,1.24798212]
[1723123897869,44.6097,157.0,156.85,2.13049745]
[1723123898042,44.61,156.99,156.85,0.8561546]
[1723123898240,38.24,156.97,156.85,0.8561546]
[1723123898563,15.727,157.02,156.85,0.8561546]
[1723123898564,38.24,156.95,156.85,0.8561546]
[1723123898742,38.24,156.94,156.85,0.8561546]
[1723123899065,38.24,156.91,156.85,0.8561546]
[1723123899254,45.34,156.9,156.85,0.8561546]
[1723123899557,0.17,156.9,156.85,0.8561546]
[1723123899863,38.41,156.9,156.85,0.8561546]
[1723123900037,45.17,156.89,156.85,0.8561546]
[1723123900234,0.17,156.88,156.85,0.8561546]
[1723123901661,45.54746672,156.98,156.85,0.8561546]
[1723123901837,6.3706,156.97,156.85,0.8561546]
[1723123902041,38.24,156.97,156.85,0.8561546]
[1723123902252,18.34225582,157.02,156.85,0.8561546]
[1723123902463,15.727,157.02,156.85,0.8561546]
[1723123902642,6.3723,156.93,156.85,0.8561546]
[1723123902856,15.727,157.02,156.85,0.8561546]
[1723123903165,38.24,156.94,156.85,0.8561546]
[1723123903663,44.6131,156.91,156.85,0.8561546]
[1723123903848,83.58,156.9,156.85,0.8561546]
[1723123904473,38.24,156.89,156.85,0.8561546]
[1723123904642,38.24,156.87,156.85,0.8561546]
[1723123904845,0.17,156.86,156.85,0.8561546]
[1723123905367,45.0,156.9,156.85,0.8561546]
[1723123905558,0.17,156.91,156.85,0.8561546]
[1723123905875,6.3739,156.89,156.85,0.8561546]
[1723123906048,83.41,156.88,156.85,0.8561546]
[1723123906363,44.6151,156.86,156.85,0.8561546]
[1723123906672,38.41,156.86,156.85,0.8561546]
[1723123906969,83.58,156.86,156.85,0.8561546]
[1723123907162,89.9551,156.86,156.85,0.8561546]
[1723123907671,83.58,156.86,156.85,0.8561546]
[1723123907857,45.34,156.86,156.85,0.8561546]
[1723123908254,89.9551,156.86,156.85,0.8561546]
[1723123909248,89.9551,156.86,156.7,6.0586]
[1723123909249,44.6172,156.81,156.7,6.0586]
[1723123909450,0.34,156.8,156.7,6.0586]
[1723123909667,0.17,156.8,156.7,6.0586]
[1723123910449,0.17,156.8,156.71,20.0]
[1723123910699,0.17,156.8,156.7,6.0586]
[1723123910973,38.24,156.75,156.69,0.8561546]
[1723123911295,45.17,156.8,156.69,0.8561546]
[1723123911296,38.24,156.77,156.69,0.8561546]
[1723123911460,6.5484,156.78,156.69,0.8561546]
[1723123911655,51.7188,156.77,156.69,0.8561546]
[1723123911866,0.17,156.76,156.69,0.8561546]
[1723123912366,42.95,156.83,156.69,0.8561546]
[1723123912567,15.8127,156.89,156.69,0.8561546]
[1723123912749,15.8127,156.89,156.7,0.35792188]
[1723123912950,15.8127,156.89,156.71,0.59281429]
[1723123913150,38.24,156.84,156.69,1.70220393]
[1723123913379,6.3744,156.88,156.71,15.2203]
[1723123913581,42.95,156.91,156.73,6.4993]
[1723123913777,6.3747,156.87,156.74,20.0]
[1723123914082,15.9343,156.9,156.74,20.0]
[1723123914251,6.375,156.87,156.74,20.0]
[1723123914583,44.6153,156.86,156.74,20.0]
[1723123914753,44.6158,156.85,156.74,20.0]
[1723123914961,38.24,156.85,156.74,20.0]
[1723123915165,38.24,156.92,156.75,45.17]
[1723123915360,38.24,156.88,156.75,45.0]
[1723123915595,38.24,156.88,156.76,20.0]
[1723123915773,44.6144,156.88,156.76,20.0]
[1723123915969,44.6153,156.86,156.76,20.0]
[1723123916275,38.24,156.83,156.73,6.4993]
[1723123916464,38.24,156.87,156.73,7.77430872]
[1723123916668,38.24,156.87,156.73,6.4993]
[1723123916869,6.3751,156.86,156.73,6.4993]
[1723123917071,44.6158,156.85,156.73,6.4993]
[1723123917284,9.01807265,156.93,156.73,7.69256673]
[1723123917486,38.24,156.87,156.74,1.19319059]
[1723123917689,38.24,156.87,156.73,6.4993]
[1723123917890,24.94927265,156.93,156.74,21.19417332]
[1723123918095,6.3739,156.89,156.74,21.19417332]
[1723123918388,38.24,156.85,156.74,20.0]
[1723123918771,38.24,156.84,156.74,20.0]
[1723123918972,38.24,156.84,156.74,21.27571539]
[1723123919178,0.17,156.83,156.74,21.27571539]
[1723123919389,0.17,156.83,156.74,20.0]
[1723123919571,0.34,156.83,156.74,20.0]
[1723123919776,83.58,156.83,156.74,20.0]
[1723123919980,38.2772,156.93,156.75,1.27506491]
[1723123919981,6.415,156.93,156.75,1.27506491]
[1723123920175,6.3735,156.9,156.75,1.27506491]
[1723123920476,6.415,156.93,156.75,45.0]
[1723123920682,6.415,156.93,156.76,20.0]
[1723123920898,44.655,156.93,156.77,45.17]
[1723123921067,44.655,156.93,156.8,15.962]
[1723123921068,6.415,156.93,156.8,15.962]
[1723123921266,6.415,156.93,156.81,66.4445906]
[1723123921466,260.7,156.97,156.81,20.0]
[1723123921682,6.3731,156.91,156.8,15.962]
[1723123921892,38.24,156.94,156.8,15.962]
[1723123922068,260.7,156.97,156.8,15.962]
[1723123922403,260.7,156.97,156.81,66.4446863]
[1723123922690,267.071,156.97,156.81,66.2746863]
[1723123922893,38.24,157.0,156.82,0.17]
[1723123923102,36.6308,157.06,156.84,49.3326]
[1723123923307,49.3164,157.08,156.87,6.3826]
[1723123923308,6.3663,157.08,156.87,6.3826]
[1723123923601,2.59001103,157.11,156.87,6.3826]
[1723123923602,15.9205,157.03,156.87,6.3826]
[1723123923806,42.95,157.05,156.88,20.0]
[1723123924088,39.14,157.1,156.87,6.3826]
[1723123924089,44.6119,156.94,156.87,6.3826]
[1723123924293,6.3697,157.0,156.87,6.3826]
[1723123924516,15.9206,157.03,156.87,6.3826]
[1723123924668,45.17,157.02,156.87,6.3826]
[1723123924871,6.3706,156.98,156.87,6.3826]
[1723123925075,83.41,156.97,156.87,6.3826]
[1723123925277,89.781,156.97,156.87,6.3826]
[1723123925490,38.24,156.95,156.87,6.3826]
[1723123925693,83.24,156.94,156.87,6.3826]
[1723123925997,83.24,156.94,156.8,6.5428]
[1723123925998,38.58,156.93,156.8,6.5428]
[1723123926301,0.34,156.93,156.8,6.5428]
[1723123926475,0.17,156.93,156.8,6.5428]
[1723123926679,6.3697,157.0,156.81,1.27469599]
[1723123926897,45.17,156.99,156.81,1.27469599]
[1723123927201,42.95,157.04,156.81,1.27469599]
[1723123927202,38.24,157.01,156.81,21.27469599]
[1723123927381,44.6102,156.98,156.82,0.17]
[1723123927701,38.24,156.98,156.82,45.17]
[1723123927893,42.95,157.04,156.83,20.17]
[1723123928098,38.24,157.01,156.84,45.17]
[1723123928417,38.24,156.96,156.8,6.5428]
[1723123928700,38.24,156.92,156.8,6.5428]
[1723123928901,44.6139,156.89,156.8,6.5428]
[1723123929095,38.24,156.89,156.8,6.5428]
[1723123929292,0.17,156.88,156.8,6.5428]
[1723123929494,6.3766,156.83,156.73,6.4974]
[1723123929695,38.41,156.82,156.73,6.4974]
[1723123929878,0.17,156.81,156.73,6.4974]
[1723123930289,38.24,156.8,156.73,6.4974]
[1723123930591,83.58,156.79,156.68,6.2189]
[1723123931101,38.24,156.76,156.68,6.2189]
[1723123931415,83.58,156.75,156.68,6.2189]
[1723123931599,83.41,156.75,156.68,6.2189]
[1723123931798,83.41,156.75,156.63,6.3724]
[1723123931799,0.17,156.74,156.63,6.3724]
[1723123932212,6.3812,156.71,156.63,6.3724]
[1723123932412,83.58,156.7,156.63,6.3724]
[1723123932595,83.58,156.7,156.57,6.4714]
[1723123932924,83.58,156.7,156.53,0.8561546]
[1723123932925,38.24,156.65,156.53,0.8561546]
[1723123933124,44.6239,156.65,156.53,0.8561546]
[1723123933298,89.9641,156.64,156.53,0.8561546]
[1723123933490,6.3844,156.63,156.53,0.8561546]
[1723123933692,83.58,156.62,156.53,0.8561546]
[1723123933994,38.24,156.6,156.53,0.8561546]
[1723123934198,0.34,156.61,156.53,0.8561546]
[1723123934199,0.17,156.59,156.53,0.8561546]
[1723123934391,38.24,156.57,156.53,0.8561546]
[1723123934806,44.6281,156.54,156.53,0.8561546]
[1723123935118,119.9681,156.54,156.53,0.8561546]
[1723123935419,119.9681,156.54,156.36,6.1081]
[1723123935420,38.24,156.5,156.36,6.1081]
[1723123935595,38.24,156.48,156.36,6.1081]
[1723123935791,83.58,156.47,156.36,6.1081]
[1723123936100,0.17,156.47,156.39,1.08413545]
[1723123936311,0.17,156.48,156.39,1.08413545]
[1723123936626,30.0,156.54,156.4,1.27868932]
[1723123936627,0.34,156.53,156.4,1.27868932]
[1723123936817,45.34,156.53,156.39,1.27842409]
[1723123937116,38.24,156.48,156.36,6.1081]
[1723123937301,83.58,156.47,156.36,6.1081]
[1723123937630,0.17,156.47,156.36,6.1081]
[1723123937926,30.0,156.54,156.39,1.27616715]
[1723123938099,38.24,156.54,156.39,1.27616715]
[1723123938299,22.3742,156.63,156.39,1.27616715]
[1723123938533,42.95,156.59,156.38,0.8561546]
[1723123938908,38.24,156.58,156.38,0.8561546]
[1723123939099,42.95,156.59,156.38,0.8561546]
[1723123939100,38.24,156.55,156.38,2.13440209]
[1723123939521,38.24,156.55,156.38,0.8561546]
[1723123939700,44.6286,156.53,156.38,0.8561546]
[1723123940035,38.24,156.48,156.38,0.8561546]
[1723123940197,0.34,156.47,156.38,0.8561546]
[1723123940392,83.58,156.47,156.38,0.8561546]
[1723123940805,38.24,156.42,156.38,0.8561546]
[1723123941008,38.24,156.39,156.38,0.8561546]
[1723123941336,83.41,156.39,156.38,0.8561546]
[1723123941497,83.58,156.39,156.38,0.8561546]
[1723123942533,45.34,156.39,156.38,0.8561546]
[1723123942698,0.17,156.39,156.38,0.8561546]
[1723123942895,45.17,156.39,156.38,0.8561546]
[1723123943208,89.9742,156.39,156.38,0.8561546]
[1723123943620,119.9742,156.39,156.38,0.8561546]
[1723123944138,119.9742,156.39,156.22,0.8561546]
[1723123944139,38.24,156.33,156.22,0.8561546]
[1723123944421,91.156,156.39,156.22,0.8561546]
[1723123944422,6.3987,156.29,156.22,0.8561546]
[1723123944642,43.29,156.32,156.22,0.8561546]
[1723123944643,0.17,156.32,156.22,0.8561546]
[1723123944923,0.17,156.31,156.22,0.8561546]
[1723123945334,45.34,156.32,156.22,0.8561546]
[1723123945721,0.34,156.32,156.22,0.8561546]
[1723123946215,81.19,156.32,156.22,0.8561546]
[1723123946421,45.34,156.31,156.22,0.8561546]
[1723123946634,38.24,156.3,156.22,0.8561546]
[1723123946845,0.17,156.29,156.22,0.8561546]
[1723123947325,51.7387,156.29,156.22,0.8561546]
[1723123947556,0.17,156.28,156.22,0.8561546]
[1723123947843,38.41,156.28,156.22,0.8561546]
[1723123948140,38.24,156.26,156.22,0.8561546]
[1723123948344,45.17,156.27,156.22,0.8561546]
[1723123948345,38.24,156.24,156.22,0.8561546]
[1723123948526,0.17,156.23,156.22,0.8561546]
[1723123948734,0.17,156.23,156.07,6.3816]
[1723123948735,38.24,156.22,156.07,6.3816]
[1723123948960,38.24,156.19,156.07,6.3816]
[1723123949239,45.0,156.18,156.07,6.3816]
[1723123949452,0.17,156.17,156.07,6.3816]
[1723123949820,38.24,156.14,156.07,6.3816]
[1723123950027,6.7436,156.17,156.0,6.6384]
[1723123950028,38.24,156.12,156.0,6.6384]
[1723123950365,38.24,156.12,155.95,15.8276]
[1723123950366,45.17,156.11,156.01,0.9764209]
[1723123950651,38.24,156.08,156.01,0.9764209]
[1723123950860,6.4087,156.04,156.01,0.9764209]
[1723123951017,38.58,156.03,156.01,0.9764209]
[1723123951223,83.24,156.02,156.01,0.9764209]
[1723123951445,38.58,156.02,156.01,0.9764209]
[1723123951939,83.58,156.02,156.01,0.7964209]
[1723123952439,38.24,155.96,155.82,7.66958301]
[1723123952655,42.95,155.99,155.82,1.0323971]
[1723123952656,20.0,155.99,155.82,1.0323971]
[1723123952826,45.17,155.98,155.82,1.0323971]
[1723123953035,45.17,155.98,155.83,1.2271654]
[1723123953332,45.17,155.98,155.82,1.0323971]
[1723123953533,45.17,155.98,155.82,2.31544966]
[1723123953750,38.24,155.97,155.82,1.0323971]
[1723123954037,38.24,155.95,155.82,1.0323971]
[1723123954248,45.17,155.94,155.82,1.0323971]
[1723123954554,0.17,155.93,155.82,1.0323971]
[1723123954733,38.24,155.91,155.82,1.0323971]
[1723123954931,38.24,155.89,155.82,1.0323971]
[1723123955236,45.34,155.9,155.82,1.0323971]
[1723123955237,38.24,155.87,155.82,0.5323971]
[1723123955428,0.34,155.86,155.82,0.5323971]
[1723123955624,38.24,155.85,155.82,0.5323971]
[1723123955924,38.24,155.85,155.71,2.53601285]
[1723123955925,38.24,155.83,155.68,6.63678596]
[1723123956127,81.19,155.83,155.67,6.349]
[1723123956328,38.24,155.77,155.63,1.0323971]
[1723123956548,38.24,155.71,155.63,1.0323971]
[1723123956765,83.58,155.7,155.63,1.0323971]
[1723123956925,0.17,155.69,155.63,1.0323971]
[1723123957627,38.24,155.79,155.63,1.0323971]
[1723123957965,42.95,155.84,155.63,1.0323971]
[1723123957966,38.24,155.77,155.63,1.0323971]
[1723123958129,22.64281946,155.92,155.64,58.3005]
[1723123958329,15.5174,155.94,155.68,42.95]
[1723123958330,62.95,155.93,155.68,42.95]
[1723123958556,15.5174,155.94,155.64,21.9823908]
[1723123958557,38.24,155.88,155.64,64.9323908]
[1723123958854,15.5174,155.94,155.64,64.9323908]
[1723123958855,38.24,155.84,155.64,21.9823908]
[1723123959148,38.24,155.82,155.64,21.9823908]
[1723123959353,38.24,155.82,155.65,20.0]
[1723123959526,38.24,155.78,155.63,1.0323971]
[1723123959727,38.24,155.76,155.63,1.0323971]
[1723123959948,38.24,155.74,155.64,1.28470729]
[1723123960215,45.0,155.77,155.64,1.28470729]
[1723123960980,45.0,155.77,155.63,1.0323971]
[1723123961263,38.24,155.71,155.63,0.5323971]
[1723123961438,0.17,155.7,155.63,0.5323971]
[1723123961641,22.175,155.87,155.63,0.5323971]
[1723123961945,38.24,155.84,155.63,0.5323971]
[1723123962137,38.24,155.86,155.63,0.5323971]
[1723123962338,15.9301,156.02,155.72,42.95]
[1723123962541,49.3612,155.98,155.73,20.0]
[1723123962753,42.95,155.98,155.74,45.0]
[1723123962956,42.95,155.98,155.75,20.0]
[1723123963164,38.24,155.97,155.73,20.34]
[1723123963347,38.24,155.92,155.68,42.95]
[1723123963542,38.24,155.89,155.69,45.34]
[1723123963748,38.24,155.89,155.73,42.95]
[1723123963972,38.24,155.89,155.74,65.17]
[1723123964472,58.8801,156.02,155.76,6.2385]
[1723123964654,42.95,155.98,155.77,20.0]
[1723123964837,42.95,155.94,155.76,6.2385]
[1723123965364,38.24,155.95,155.76,6.2385]
[1723123965582,38.24,155.89,155.76,6.2385]
[1723123965866,38.24,155.89,155.68,42.95]
[1723123966047,38.24,155.89,155.69,20.17]
[1723123966447,38.24,155.83,155.67,6.3238]
[1723123967068,0.17,155.82,155.67,6.3238]
[1723123967266,38.24,155.82,155.67,6.3238]
[1723123967774,38.24,155.74,155.63,0.5323971]
[1723123968064,38.24,155.72,155.63,0.5323971]
[1723123968784,38.24,155.7,155.63,0.5323971]
[1723123969651,38.24,155.69,155.63,0.5323971]
[1723123970045,0.17,155.7,155.63,0.5323971]
[1723123970243,45.17,155.71,155.63,0.5323971]
[1723123970546,42.95,155.84,155.63,0.5323971]
[1723123970757,6.4202,155.76,155.63,0.5323971]
[1723123970961,16.0449,155.82,155.63,0.5323971]
[1723123971164,38.24,155.8,155.63,0.5323971]
[1723123971468,38.24,155.8,155.64,0.79354279]
[1723123971672,38.24,155.8,155.63,0.5323971]
[1723123971875,38.24,155.78,155.63,1.32667326]
[1723123972045,38.24,155.74,155.63,0.5323971]
[1723123972645,38.24,155.76,155.63,0.5323971]
[1723123972847,6.4182,155.81,155.63,0.5323971]
[1723123973071,42.95,155.84,155.63,0.5323971]
[1723123973549,38.24,155.81,155.63,0.5323971]
[1723123973968,38.24,155.81,155.64,1.28454944]
[1723123974161,38.24,155.81,155.65,0.17]
[1723123974364,38.24,155.81,155.65,1.45417607]
[1723123974553,38.24,155.84,155.65,1.45417607]
[1723123974753,38.24,155.84,155.66,0.17]
[1723123974958,38.24,155.81,155.65,45.34]
[1723123975180,38.24,155.81,155.66,20.0]
[1723123975482,38.24,155.83,155.67,0.17]
[1723123975658,59.1644,155.95,155.68,22.3686]
[1723123975848,59.1644,155.95,155.71,42.95]
[1723123976053,6.4118,155.97,155.72,20.17]
[1723123976248,42.95,156.0,155.75,42.95]
[1723123976249,6.4112,155.98,155.75,42.95]
[1723123976481,38.24,155.97,155.76,72.90300619]
[1723123976683,38.24,155.97,155.79,42.95]
[1723123976853,38.24,155.97,155.81,15.5469]
[1723123977048,16.0229,156.03,155.82,20.0]
[1723123977049,38.24,155.94,155.82,20.0]
[1723123977249,38.24,155.91,155.76,6.6199]
[1723123977469,38.24,155.91,155.77,20.0]
[1723123978083,58.9765,156.0,155.78,45.34]
[1723123978084,38.24,155.97,155.78,45.34]
[1723123978379,38.24,155.99,155.79,20.0]
[1723123978575,44.6507,155.99,155.8,45.34]
[1723123978779,38.24,155.96,155.81,20.0]
[1723123978963,38.24,155.92,155.81,20.0]
[1723123979162,25.694612,156.03,155.82,1.28288516]
[1723123979366,48.0471,156.1,155.83,0.34]
[1723123979584,25.685401,156.07,155.84,1.28267636]
[1723123979752,6.4091,156.03,155.85,0.34]
[1723123980062,0.5,156.11,155.88,15.7477]
[1723123980271,38.24,156.08,155.89,66.62226494]
[1723123980456,38.24,156.08,155.9,1.28203891]
[1723123980986,38.24,156.08,155.91,0.34]
[1723123981156,38.24,156.07,155.91,0.34]
[1723123981362,38.24,156.04,155.88,15.7477]
[1723123981678,38.24,156.02,155.87,6.4225]
[1723123982300,42.95,156.08,155.87,6.4225]
[1723123982582,6.4078,156.06,155.87,6.4225]
[1723123982784,38.41,156.05,155.87,6.4225]
[1723123983083,2.568068,156.09,155.88,20.0]
[1723123983383,2.568068,156.09,155.88,64.23237731]
[1723123983759,2.568068,156.09,155.88,62.95]
[1723123983760,38.24,156.04,155.88,62.95]
[1723123983961,38.24,156.04,155.88,20.0]
[1723123984394,38.24,156.0,155.88,20.0]
[1723123984560,38.24,156.0,155.87,6.4225]
[1723123984761,38.24,156.05,155.88,43.2985745]
[1723123985072,38.24,156.05,155.88,42.95]
[1723123985269,38.24,156.04,155.87,6.4225]
[1723123985586,2.568068,156.09,155.88,1.28251119]
[1723123985889,40.808068,156.09,155.89,0.17]
[1723123986060,40.808068,156.09,155.9,1.28195829]
[1723123986261,38.24,156.09,155.92,16.335]
[1723123986488,44.6469,156.09,155.93,45.17]
[1723123986678,6.4079,156.06,155.94,20.0]
[1723123986992,0.5,156.11,155.95,0.17]
[1723123987286,0.5,156.11,155.95,0.34]
[1723123987470,38.24,156.09,155.95,0.17]
[1723123987675,44.6469,156.09,155.95,20.0]
[1723123987886,38.24,156.07,155.93,1.28208167]
[1723123988264,38.24,156.07,155.92,16.335]
[1723123988467,42.95,156.1,155.92,16.335]
[1723123988468,38.24,156.0,155.92,16.335]
[1723123988664,38.24,156.0,155.87,6.4225]
[1723123988865,0.17,156.01,155.87,6.4225]
[1723123989096,38.24,156.05,155.87,6.4225]
[1723123989262,38.24,156.03,155.87,6.4225]
[1723123989467,38.24,155.98,155.87,6.4225]
[1723123989662,0.17,155.97,155.87,6.4225]
[1723123989864,45.0,155.97,155.87,6.4225]
[1723123990181,0.17,156.04,155.87,6.4225]
[1723123990389,0.34,156.04,155.87,6.4225]
[1723123990577,35.1726,156.03,155.87,6.4225]
[1723123990769,0.34,156.04,155.87,6.4225]
[1723123990770,16.0247,156.01,155.87,6.4225]
[1723123990998,38.24,155.96,155.87,6.4225]
[1723123991183,0.17,155.95,155.87,6.4225]
[1723123991387,38.24,155.92,155.8,6.5459]
[1723123991578,6.4132,155.93,155.8,6.5459]
[1723123991579,6.4153,155.88,155.8,6.5459]
[1723123991783,38.24,155.9,155.73,6.5459]
[1723123991784,38.24,155.83,155.73,6.5459]
[1723123992105,38.24,155.81,155.73,6.5459]
[1723123992312,42.95,155.94,155.74,1.21520637]
[1723123992610,6.4143,155.9,155.73,6.5459]
[1723123992769,45.17,155.89,155.74,1.21489425]
[1723123993170,6.4141,155.91,155.73,6.5459]
[1723123993399,2.61394362,155.99,155.76,42.95]
[1723123993587,42.95,156.0,155.76,42.95]
[1723123993790,42.95,156.0,155.73,6.5459]
[1723123994001,42.95,155.95,155.74,1.22330562]
[1723123994182,6.413,155.94,155.74,1.28347492]
[1723123994491,38.24,155.91,155.75,0.17]
[1723123994698,42.95,156.0,155.75,1.4533101]
[1723123994892,75.0013,156.0,155.76,0.17]
[1723123995199,58.9844,155.92,155.73,6.5459]
[1723123995386,38.24,155.85,155.73,6.5459]
[1723123995790,38.24,155.83,155.73,6.5459]
[1723123996306,38.24,155.88,155.73,6.5459]
[1723123996472,42.95,155.92,155.74,1.28384073]
[1723123996473,38.24,155.86,155.74,1.28384073]
[1723123996671,42.95,155.92,155.73,6.5459]
[1723123996672,38.24,155.83,155.73,6.5459]